[Event "Titled Tuesday Blitz August 17 2021"]
[White "Sarana, Alexey"]
[Black "Indjic, Aleksandar"]
[WhiteFideId "24133795"]
[BlackFideId "911925"]
[WhiteElo "2646"]
[BlackElo "2643"]
[Result "1-0"]
[Round "09"]
[TimeControl "180+1"]
[Date "2021.08.17"]
[WhiteClock "0:01:00"]
[BlackClock "0:00:02"]

1. d4 {[%clk 0:02:52]}  Nf6 {[%clk 0:02:59]} 2. Nf3 {[%clk 0:02:52]}  e6 {[%clk 0:02:59]} 3. c4 {[%clk 0:02:52]}  c5 {[%clk 0:02:59]} 4. d5 {[%clk 0:02:53]}  d6 {[%clk 0:02:59]} 5. Nc3 {[%clk 0:02:52]}  exd5 {[%clk 0:02:59]} 6. cxd5 {[%clk 0:02:53]}  g6 {[%clk 0:02:59]} 7. h3 {[%clk 0:02:51]}  a6 {[%clk 0:02:55]} 8. e4 {[%clk 0:02:46]}  b5 {[%clk 0:02:54]} 9. Bd3 {[%clk 0:02:46]}  Bg7 {[%clk 0:02:54]} 10. Bf4 {[%clk 0:02:43]}  O-O {[%clk 0:02:53]} 11. O-O {[%clk 0:02:43]}  Re8 {[%clk 0:02:53]} 12. Re1 {[%clk 0:02:41]}  Ra7 {[%clk 0:02:51]} 13. Rc1 {[%clk 0:02:39]}  Rae7 {[%clk 0:02:48]} 14. Nd2 {[%clk 0:02:32]}  Qb6 {[%clk 0:02:45]} 15. a4 {[%clk 0:02:31]}  c4 {[%clk 0:02:42]} 16. axb5 {[%clk 0:02:25]}  cxd3 {[%clk 0:01:45]} 17. Nc4 {[%clk 0:02:24]}  Qd4 {[%clk 0:01:44]} 18. Nxd6 {[%clk 0:02:20]}  Nh5 {[%clk 0:00:57]} 19. Be3 {[%clk 0:02:15]}  Qe5 {[%clk 0:00:51]} 20. Nxe8 {[%clk 0:02:10]}  Rxe8 {[%clk 0:00:51]} 21. Qxd3 {[%clk 0:02:09]}  axb5 {[%clk 0:00:47]} 22. Qxb5 {[%clk 0:02:09]}  Bd7 {[%clk 0:00:43]} 23. Qd3 {[%clk 0:02:03]}  Nf4 {[%clk 0:00:36]} 24. Bxf4 {[%clk 0:02:03]}  Qxf4 {[%clk 0:00:37]} 25. g3 {[%clk 0:02:03]}  Qg5 {[%clk 0:00:34]} 26. h4 {[%clk 0:02:02]}  Qh5 {[%clk 0:00:33]} 27. f4 {[%clk 0:01:43]}  Bc8 {[%clk 0:00:17]} 28. e5 {[%clk 0:01:41]}  Ba6 {[%clk 0:00:16]} 29. Qe3 {[%clk 0:01:38]}  Nd7 {[%clk 0:00:16]} 30. Ne4 {[%clk 0:01:38]}  h6 {[%clk 0:00:14]} 31. Rc7 {[%clk 0:01:36]}  Nf8 {[%clk 0:00:07]} 32. Qa7 {[%clk 0:01:26]}  Bxe5 {[%clk 0:00:01]} 33. fxe5 {[%clk 0:01:21]}  Qxe5 {[%clk 0:00:01]} 34. Rxf7 {[%clk 0:01:10]}  Kh8 {[%clk 0:00:02]} 35. Qxa6 {[%clk 0:01:03]}  Qd4+ {[%clk 0:00:02]} 36. Rf2 {[%clk 0:01:01]}  Nh7 {[%clk 0:00:02]} 37. Qxg6 {[%clk 0:01:00]} 1-0


[Site "https://www.chess.com"]

[Event "Titled Tuesday Blitz August 17 2021"]
[White "Seo, Jung Min"]
[Black "Zarubitski, Viachaslau"]
[WhiteFideId "1734687"]
[BlackFideId "13509373"]
[WhiteElo "2738"]
[BlackElo "2592"]
[Result "1-0"]
[Round "09"]
[TimeControl "180+1"]
[Date "2021.08.17"]
[WhiteClock "0:00:04"]
[BlackClock "0:00:03"]

1. e4 {[%clk 0:03:00]}  e5 {[%clk 0:02:56]} 2. Nf3 {[%clk 0:03:01]}  Nf6 {[%clk 0:02:56]} 3. Nxe5 {[%clk 0:02:59]}  d6 {[%clk 0:02:57]} 4. Nf3 {[%clk 0:02:59]}  Nxe4 {[%clk 0:02:58]} 5. Nc3 {[%clk 0:03:00]}  Nf6 {[%clk 0:02:57]} 6. d4 {[%clk 0:02:59]}  Bg4 {[%clk 0:02:56]} 7. Qe2+ {[%clk 0:02:51]}  Be7 {[%clk 0:02:55]} 8. Qb5+ {[%clk 0:02:50]}  Nc6 {[%clk 0:02:09]} 9. d5 {[%clk 0:02:38]}  Bxf3 {[%clk 0:01:55]} 10. gxf3 {[%clk 0:02:34]}  a6 {[%clk 0:01:55]} 11. Qa4 {[%clk 0:02:31]}  b5 {[%clk 0:01:55]} 12. Bxb5 {[%clk 0:02:22]}  axb5 {[%clk 0:01:55]} 13. Qxb5 {[%clk 0:02:22]}  O-O {[%clk 0:01:54]} 14. Qxc6 {[%clk 0:02:22]}  Qb8 {[%clk 0:01:49]} 15. O-O {[%clk 0:02:19]}  Ra5 {[%clk 0:01:36]} 16. Qc4 {[%clk 0:02:11]}  Nd7 {[%clk 0:01:31]} 17. f4 {[%clk 0:01:54]}  Nb6 {[%clk 0:01:22]} 18. Qd3 {[%clk 0:01:52]}  Bf6 {[%clk 0:01:14]} 19. Ne4 {[%clk 0:01:51]}  Rxd5 {[%clk 0:00:45]} 20. Nxf6+ {[%clk 0:01:50]}  gxf6 {[%clk 0:00:46]} 21. Qf3 {[%clk 0:01:50]}  Kh8 {[%clk 0:00:44]} 22. Kh1 {[%clk 0:01:49]}  Qc8 {[%clk 0:00:37]} 23. Be3 {[%clk 0:01:45]}  Qf5 {[%clk 0:00:37]} 24. Rad1 {[%clk 0:01:30]}  Rxd1 {[%clk 0:00:33]} 25. Rxd1 {[%clk 0:01:30]}  Nc4 {[%clk 0:00:31]} 26. Bd4 {[%clk 0:01:21]}  d5 {[%clk 0:00:20]} 27. Qc3 {[%clk 0:01:11]}  h6 {[%clk 0:00:06]} 28. Rg1 {[%clk 0:01:01]}  Kh7 {[%clk 0:00:03]} 29. Bxf6 {[%clk 0:00:56]}  Rg8 {[%clk 0:00:02]} 30. Rxg8 {[%clk 0:00:56]}  Kxg8 {[%clk 0:00:03]} 31. Qg3+ {[%clk 0:00:54]}  Kf8 {[%clk 0:00:02]} 32. Qg7+ {[%clk 0:00:29]}  Ke8 {[%clk 0:00:02]} 33. Qg8+ {[%clk 0:00:28]}  Kd7 {[%clk 0:00:03]} 34. Qxf7+ {[%clk 0:00:24]}  Kc6 {[%clk 0:00:03]} 35. Qe8+ {[%clk 0:00:21]}  Kb7 {[%clk 0:00:03]} 36. Bd4 {[%clk 0:00:16]}  Qxf4 {[%clk 0:00:02]} 37. Qb5+ {[%clk 0:00:13]}  Nb6 {[%clk 0:00:02]} 38. Qd3 {[%clk 0:00:08]}  Nc4 {[%clk 0:00:01]} 39. b3 {[%clk 0:00:06]}  Qc1+ {[%clk 0:00:02]} 40. Kg2 {[%clk 0:00:06]}  Qg5+ {[%clk 0:00:02]} 41. Qg3 {[%clk 0:00:06]}  Nd6 {[%clk 0:00:02]} 42. Qxg5 {[%clk 0:00:06]}  hxg5 {[%clk 0:00:03]} 43. Be3 {[%clk 0:00:05]}  g4 {[%clk 0:00:03]} 44. Kg3 {[%clk 0:00:05]}  d4 {[%clk 0:00:03]} 45. Bc1 {[%clk 0:00:05]}  Ne4+ {[%clk 0:00:03]} 46. Kxg4 {[%clk 0:00:04]}  Nxf2+ {[%clk 0:00:04]} 47. Kf3 {[%clk 0:00:04]}  Nd1 {[%clk 0:00:03]} 48. h4 {[%clk 0:00:04]}  Kc6 {[%clk 0:00:02]} 49. h5 {[%clk 0:00:03]}  Kd6 {[%clk 0:00:03]} 50. h6 {[%clk 0:00:04]} 1-0


[Site "https://www.chess.com"]

[Event "Titled Tuesday Blitz August 17 2021"]
[White "Seul, Georg"]
[Black "Seletsky, Grigory"]
[WhiteFideId "4601653"]
[BlackFideId "14112191"]
[WhiteElo "2332"]
[BlackElo "2492"]
[Result "1-0"]
[Round "09"]
[TimeControl "180+1"]
[Date "2021.08.17"]
[WhiteClock "0:00:55"]
[BlackClock "0:01:49"]

1. e4 {[%clk 0:03:00]}  c6 {[%clk 0:02:54]} 2. d4 {[%clk 0:02:59]}  d5 {[%clk 0:02:55]} 3. exd5 {[%clk 0:03:00]}  cxd5 {[%clk 0:02:55]} 4. Bd3 {[%clk 0:03:00]}  Nc6 {[%clk 0:02:56]} 5. c3 {[%clk 0:03:01]}  Nf6 {[%clk 0:02:55]} 6. Bf4 {[%clk 0:03:01]}  Bg4 {[%clk 0:02:54]} 7. Qb3 {[%clk 0:03:01]}  Qc8 {[%clk 0:02:53]} 8. Nd2 {[%clk 0:03:00]}  e6 {[%clk 0:02:53]} 9. Ngf3 {[%clk 0:03:01]}  Bxf3 {[%clk 0:02:48]} 10. Nxf3 {[%clk 0:03:00]}  Be7 {[%clk 0:02:49]} 11. O-O {[%clk 0:02:59]}  O-O {[%clk 0:02:49]} 12. Qd1 {[%clk 0:02:59]}  a6 {[%clk 0:02:43]} 13. a4 {[%clk 0:02:57]}  Re8 {[%clk 0:02:42]} 14. Qe2 {[%clk 0:02:56]}  g6 {[%clk 0:02:40]} 15. h4 {[%clk 0:02:47]}  Bf8 {[%clk 0:02:40]} 16. Ne5 {[%clk 0:02:36]}  Bg7 {[%clk 0:02:38]} 17. Bh2 {[%clk 0:02:13]}  Nxe5 {[%clk 0:02:37]} 18. Bxe5 {[%clk 0:02:11]}  Qd8 {[%clk 0:02:26]} 19. Rae1 {[%clk 0:01:57]}  h5 {[%clk 0:02:24]} 20. f3 {[%clk 0:01:48]}  Nd7 {[%clk 0:02:21]} 21. Bxg7 {[%clk 0:01:47]}  Kxg7 {[%clk 0:02:20]} 22. Qf2 {[%clk 0:01:47]}  Qc7 {[%clk 0:02:08]} 23. f4 {[%clk 0:01:35]}  Nf6 {[%clk 0:02:07]} 24. Qf3 {[%clk 0:01:31]}  Rab8 {[%clk 0:01:59]} 25. Re5 {[%clk 0:01:27]}  b5 {[%clk 0:01:59]} 26. axb5 {[%clk 0:01:26]}  axb5 {[%clk 0:01:59]} 27. f5 {[%clk 0:01:07]}  exf5 {[%clk 0:01:58]} 28. Rxf5 {[%clk 0:00:56]}  gxf5 {[%clk 0:01:53]} 29. Qxf5 {[%clk 0:00:56]}  Qg3 {[%clk 0:01:49]} 30. Qxf6+ {[%clk 0:00:55]} 1-0


[Site "https://www.chess.com"]

[Event "Titled Tuesday Blitz August 17 2021"]
[White "Shimelkov, Vasiliy"]
[Black "Siva Mahadevan"]
[WhiteFideId "13701630"]
[BlackFideId "25043153"]
[WhiteElo "2073"]
[BlackElo "2203"]
[Result "0-1"]
[Round "09"]
[TimeControl "180+1"]
[Date "2021.08.17"]
[WhiteClock "0:00:10"]
[BlackClock "0:00:09"]

1. d4 {[%clk 0:03:00]}  Nf6 {[%clk 0:02:59]} 2. Nf3 {[%clk 0:02:58]}  c5 {[%clk 0:02:59]} 3. d5 {[%clk 0:02:58]}  e6 {[%clk 0:02:59]} 4. c4 {[%clk 0:02:57]}  exd5 {[%clk 0:02:59]} 5. cxd5 {[%clk 0:02:57]}  d6 {[%clk 0:03:00]} 6. Nc3 {[%clk 0:02:57]}  g6 {[%clk 0:02:59]} 7. h3 {[%clk 0:02:57]}  Bg7 {[%clk 0:02:58]} 8. e4 {[%clk 0:02:57]}  O-O {[%clk 0:02:58]} 9. Bd3 {[%clk 0:02:56]}  a6 {[%clk 0:02:58]} 10. a4 {[%clk 0:02:56]}  Nbd7 {[%clk 0:02:58]} 11. O-O {[%clk 0:02:55]}  Re8 {[%clk 0:02:57]} 12. Bf4 {[%clk 0:02:54]}  Qc7 {[%clk 0:02:56]} 13. Nd2 {[%clk 0:02:52]}  Ne5 {[%clk 0:02:55]} 14. Bxe5 {[%clk 0:02:52]}  Rxe5 {[%clk 0:02:48]} 15. Nc4 {[%clk 0:02:51]}  Re8 {[%clk 0:02:49]} 16. a5 {[%clk 0:02:49]}  Bd7 {[%clk 0:02:34]} 17. Nb6 {[%clk 0:02:39]}  Rad8 {[%clk 0:02:34]} 18. Rc1 {[%clk 0:02:38]}  Nh5 {[%clk 0:02:20]} 19. b4 {[%clk 0:02:11]}  Nf4 {[%clk 0:01:53]} 20. Ne2 {[%clk 0:02:04]}  Nxd3 {[%clk 0:01:51]} 21. Qxd3 {[%clk 0:02:04]}  Bb5 {[%clk 0:01:52]} 22. Qf3 {[%clk 0:01:59]}  f5 {[%clk 0:01:51]} 23. Rfe1 {[%clk 0:01:51]}  Rxe4 {[%clk 0:01:47]} 24. bxc5 {[%clk 0:01:50]}  dxc5 {[%clk 0:01:47]} 25. Nc3 {[%clk 0:01:47]}  Rf4 {[%clk 0:01:37]} 26. Qg3 {[%clk 0:01:20]}  Bd4 {[%clk 0:01:36]} 27. Rc2 {[%clk 0:01:03]}  Be5 {[%clk 0:00:44]} 28. Qg5 {[%clk 0:01:01]}  Bd3 {[%clk 0:00:38]} 29. Rcc1 {[%clk 0:00:52]}  Rf8 {[%clk 0:00:31]} 30. g3 {[%clk 0:00:39]}  Rb4 {[%clk 0:00:23]} 31. d6 {[%clk 0:00:36]}  Qxd6 {[%clk 0:00:22]} 32. Ncd5 {[%clk 0:00:36]}  Rb2 {[%clk 0:00:20]} 33. Rcd1 {[%clk 0:00:26]}  c4 {[%clk 0:00:14]} 34. Nxc4 {[%clk 0:00:25]}  Qxd5 {[%clk 0:00:14]} 35. Nxe5 {[%clk 0:00:23]}  Rb3 {[%clk 0:00:12]} 36. Qd2 {[%clk 0:00:18]}  Rd8 {[%clk 0:00:09]} 37. Re3 {[%clk 0:00:18]}  Be4 {[%clk 0:00:09]} 38. Qxd5+ {[%clk 0:00:14]}  Rxd5 {[%clk 0:00:09]} 39. Rxd5 {[%clk 0:00:10]}  Rb1+ {[%clk 0:00:09]} 0-1


[Site "https://www.chess.com"]

[Event "Titled Tuesday Blitz August 17 2021"]
[White "Silva, Miguel Antonio Neto"]
[Black "Shahade, Gregory"]
[WhiteFideId "1911929"]
[BlackFideId "2009064"]
[WhiteElo "2283"]
[BlackElo "2677"]
[Result "0-1"]
[Round "09"]
[TimeControl "180+1"]
[Date "2021.08.17"]
[WhiteClock "0:00:23"]
[BlackClock "0:00:14"]

1. e4 {[%clk 0:03:00]}  e5 {[%clk 0:02:59]} 2. Nf3 {[%clk 0:02:59]}  Nc6 {[%clk 0:02:59]} 3. Bb5 {[%clk 0:02:58]}  a6 {[%clk 0:02:59]} 4. Ba4 {[%clk 0:02:58]}  Nf6 {[%clk 0:03:00]} 5. O-O {[%clk 0:02:57]}  Be7 {[%clk 0:02:59]} 6. d3 {[%clk 0:02:57]}  b5 {[%clk 0:02:59]} 7. Bb3 {[%clk 0:02:56]}  d6 {[%clk 0:03:00]} 8. a4 {[%clk 0:02:54]}  Bd7 {[%clk 0:02:58]} 9. Bg5 {[%clk 0:02:51]}  O-O {[%clk 0:02:57]} 10. Nc3 {[%clk 0:02:50]}  b4 {[%clk 0:02:52]} 11. Bxf6 {[%clk 0:02:47]}  Bxf6 {[%clk 0:02:51]} 12. Nd5 {[%clk 0:02:47]}  g6 {[%clk 0:02:45]} 13. Nxf6+ {[%clk 0:02:44]}  Qxf6 {[%clk 0:02:46]} 14. Bd5 {[%clk 0:02:42]}  Rab8 {[%clk 0:02:45]} 15. Bxc6 {[%clk 0:02:33]}  Bxc6 {[%clk 0:02:45]} 16. b3 {[%clk 0:02:33]}  Bd7 {[%clk 0:02:29]} 17. Nd2 {[%clk 0:02:31]}  c6 {[%clk 0:02:22]} 18. Qe2 {[%clk 0:02:26]}  d5 {[%clk 0:02:19]} 19. Rae1 {[%clk 0:02:21]}  Rfe8 {[%clk 0:02:17]} 20. Qe3 {[%clk 0:02:21]}  d4 {[%clk 0:02:06]} 21. Qg3 {[%clk 0:02:20]}  Be6 {[%clk 0:01:59]} 22. f4 {[%clk 0:02:18]}  exf4 {[%clk 0:01:59]} 23. Rxf4 {[%clk 0:02:18]}  Qe5 {[%clk 0:01:57]} 24. Qf2 {[%clk 0:02:09]}  Qc5 {[%clk 0:01:53]} 25. Nf3 {[%clk 0:01:42]}  Rbd8 {[%clk 0:01:51]} 26. e5 {[%clk 0:01:40]}  Bc8 {[%clk 0:01:05]} 27. Re2 {[%clk 0:01:26]}  Re7 {[%clk 0:00:58]} 28. h3 {[%clk 0:01:15]}  Qc3 {[%clk 0:00:50]} 29. Rxd4 {[%clk 0:01:07]}  Rxd4 {[%clk 0:00:46]} 30. Qxd4 {[%clk 0:01:07]}  Qxd4+ {[%clk 0:00:44]} 31. Nxd4 {[%clk 0:01:07]}  c5 {[%clk 0:00:44]} 32. Nf3 {[%clk 0:01:03]}  Bb7 {[%clk 0:00:44]} 33. Kf2 {[%clk 0:01:03]}  Kg7 {[%clk 0:00:43]} 34. Nd2 {[%clk 0:01:03]}  h5 {[%clk 0:00:36]} 35. g3 {[%clk 0:01:01]}  Bd5 {[%clk 0:00:32]} 36. h4 {[%clk 0:00:53]}  Re8 {[%clk 0:00:27]} 37. Nf3 {[%clk 0:00:51]}  Rd8 {[%clk 0:00:19]} 38. Ke3 {[%clk 0:00:50]}  Be6 {[%clk 0:00:18]} 39. Ng5 {[%clk 0:00:46]}  Bg4 {[%clk 0:00:18]} 40. Rf2 {[%clk 0:00:40]}  Bf5 {[%clk 0:00:18]} 41. Rf4 {[%clk 0:00:33]}  Rd5 {[%clk 0:00:18]} 42. Nf3 {[%clk 0:00:32]}  f6 {[%clk 0:00:16]} 43. exf6+ {[%clk 0:00:32]}  Kxf6 {[%clk 0:00:17]} 44. Nd2 {[%clk 0:00:28]}  Kg7 {[%clk 0:00:16]} 45. Ne4 {[%clk 0:00:28]}  Re5 {[%clk 0:00:15]} 46. Kd2 {[%clk 0:00:21]}  Rd5 {[%clk 0:00:15]} 47. Rf2 {[%clk 0:00:19]}  Bxe4 {[%clk 0:00:14]} 48. Rf4 {[%clk 0:00:19]}  Bf5 {[%clk 0:00:14]} 49. Ke3 {[%clk 0:00:20]}  Re5+ {[%clk 0:00:14]} 50. Kd2 {[%clk 0:00:21]}  Kf6 {[%clk 0:00:14]} 51. Rf2 {[%clk 0:00:21]}  Ke6 {[%clk 0:00:15]} 52. Rf4 {[%clk 0:00:21]}  Kd6 {[%clk 0:00:15]} 53. Rf2 {[%clk 0:00:22]}  Kc6 {[%clk 0:00:14]} 54. Rf4 {[%clk 0:00:22]}  Rd5 {[%clk 0:00:14]} 55. Rf2 {[%clk 0:00:22]}  Rd4 {[%clk 0:00:15]} 56. Re2 {[%clk 0:00:23]}  Rg4 {[%clk 0:00:14]} 57. Re3 {[%clk 0:00:23]}  Kd6 {[%clk 0:00:14]} 58. Ke2 {[%clk 0:00:23]}  Be6 {[%clk 0:00:14]} 59. Kf3 {[%clk 0:00:23]}  g5 {[%clk 0:00:14]} 60. hxg5 {[%clk 0:00:22]}  Rxg5 {[%clk 0:00:15]} 61. Kf4 {[%clk 0:00:22]}  Rf5+ {[%clk 0:00:14]} 62. Ke4 {[%clk 0:00:23]}  Re5+ {[%clk 0:00:14]} 63. Kf3 {[%clk 0:00:23]}  Rxe3+ {[%clk 0:00:14]} 64. Kxe3 {[%clk 0:00:24]}  Ke5 {[%clk 0:00:15]} 65. Kd2 {[%clk 0:00:24]}  Kd4 {[%clk 0:00:15]} 66. Kc1 {[%clk 0:00:24]}  Kc3 {[%clk 0:00:14]} 67. Kd1 {[%clk 0:00:23]}  Bxb3 {[%clk 0:00:14]} 68. cxb3 {[%clk 0:00:23]}  Kxd3 {[%clk 0:00:14]} 0-1


[Site "https://www.chess.com"]

[Event "Titled Tuesday Blitz August 17 2021"]
[White "Sokolin, Leonid"]
[Black "Idrisov, Ildar F"]
[WhiteFideId "2009161"]
[BlackFideId "4151020"]
[WhiteElo "2394"]
[BlackElo "2209"]
[Result "1-0"]
[Round "09"]
[TimeControl "180+1"]
[Date "2021.08.17"]
[WhiteClock "0:01:37"]
[BlackClock "0:01:24"]

1. e4 {[%clk 0:03:00]}  d5 {[%clk 0:02:58]} 2. exd5 {[%clk 0:03:00]}  Qxd5 {[%clk 0:02:57]} 3. Nc3 {[%clk 0:03:00]}  Qd6 {[%clk 0:02:56]} 4. d4 {[%clk 0:02:58]}  a6 {[%clk 0:02:56]} 5. g3 {[%clk 0:02:57]}  Nf6 {[%clk 0:02:56]} 6. Bf4 {[%clk 0:02:57]}  Qb6 {[%clk 0:02:54]} 7. a3 {[%clk 0:02:53]}  e6 {[%clk 0:02:39]} 8. Nge2 {[%clk 0:02:42]}  Bd6 {[%clk 0:02:39]} 9. Bxd6 {[%clk 0:02:27]}  cxd6 {[%clk 0:02:34]} 10. Bg2 {[%clk 0:02:27]}  O-O {[%clk 0:02:29]} 11. O-O {[%clk 0:02:27]}  Bd7 {[%clk 0:02:20]} 12. Qd2 {[%clk 0:02:20]}  Rc8 {[%clk 0:02:16]} 13. d5 {[%clk 0:02:13]}  e5 {[%clk 0:02:14]} 14. h3 {[%clk 0:02:09]}  Bf5 {[%clk 0:02:04]} 15. g4 {[%clk 0:02:08]}  Bg6 {[%clk 0:02:03]} 16. Ng3 {[%clk 0:02:03]}  Nbd7 {[%clk 0:02:02]} 17. Rab1 {[%clk 0:01:50]}  Rc7 {[%clk 0:01:55]} 18. h4 {[%clk 0:01:44]}  h6 {[%clk 0:01:54]} 19. h5 {[%clk 0:01:42]}  Bh7 {[%clk 0:01:54]} 20. g5 {[%clk 0:01:43]}  hxg5 {[%clk 0:01:40]} 21. Qxg5 {[%clk 0:01:43]}  Qd4 {[%clk 0:01:27]} 22. h6 {[%clk 0:01:39]}  Bg6 {[%clk 0:01:26]} 23. hxg7 {[%clk 0:01:38]}  Kxg7 {[%clk 0:01:24]} 24. Nf5+ {[%clk 0:01:37]} 1-0


[Site "https://www.chess.com"]

[Event "Titled Tuesday Blitz August 17 2021"]
[White "Sokolovsky, Yahli"]
[Black "Korchmar, Vasiliy"]
[WhiteFideId "2820242"]
[BlackFideId "24131750"]
[WhiteElo "1770"]
[BlackElo "2370"]
[Result "0-1"]
[Round "09"]
[TimeControl "180+1"]
[Date "2021.08.17"]
[WhiteClock "0:00:04"]
[BlackClock "0:00:42"]

1. b3 {[%clk 0:02:59]}  c5 {[%clk 0:02:58]} 2. Bb2 {[%clk 0:02:58]}  Nc6 {[%clk 0:02:59]} 3. e3 {[%clk 0:02:58]}  e5 {[%clk 0:02:58]} 4. Bb5 {[%clk 0:02:58]}  Nge7 {[%clk 0:02:50]} 5. c4 {[%clk 0:02:47]}  g6 {[%clk 0:02:45]} 6. f4 {[%clk 0:02:43]}  Bg7 {[%clk 0:02:34]} 7. Nf3 {[%clk 0:02:43]}  O-O {[%clk 0:02:18]} 8. fxe5 {[%clk 0:02:13]}  d6 {[%clk 0:02:18]} 9. d4 {[%clk 0:01:35]}  dxe5 {[%clk 0:02:06]} 10. d5 {[%clk 0:01:26]}  Nb4 {[%clk 0:01:04]} 11. a3 {[%clk 0:01:16]}  e4 {[%clk 0:01:03]} 12. Bxg7 {[%clk 0:00:29]}  Nd3+ {[%clk 0:01:02]} 13. Kd2 {[%clk 0:00:30]}  Kxg7 {[%clk 0:01:03]} 14. Ne1 {[%clk 0:00:25]}  Nf2 {[%clk 0:01:02]} 15. Qe2 {[%clk 0:00:21]}  Nxh1 {[%clk 0:01:03]} 16. Nc3 {[%clk 0:00:18]}  a6 {[%clk 0:01:02]} 17. Ba4 {[%clk 0:00:18]}  b5 {[%clk 0:01:02]} 18. cxb5 {[%clk 0:00:15]}  Nxd5 {[%clk 0:01:03]} 19. Nxd5 {[%clk 0:00:14]}  Qxd5+ {[%clk 0:01:04]} 20. Kc2 {[%clk 0:00:15]}  Be6 {[%clk 0:00:52]} 21. Rd1 {[%clk 0:00:14]}  Qb7 {[%clk 0:00:45]} 22. bxa6 {[%clk 0:00:11]}  Rxa6 {[%clk 0:00:46]} 23. g3 {[%clk 0:00:04]}  Rxa4 {[%clk 0:00:46]} 24. bxa4 {[%clk 0:00:03]}  Qb3+ {[%clk 0:00:47]} 25. Kc1 {[%clk 0:00:04]}  Rb8 {[%clk 0:00:42]} 26. Qc2 {[%clk 0:00:04]}  Qxa3+ {[%clk 0:00:42]} 27. Kd2 {[%clk 0:00:04]}  Rb2 {[%clk 0:00:42]} 0-1


[Site "https://www.chess.com"]

[Event "Titled Tuesday Blitz August 17 2021"]
[White "Sonis, Francesco"]
[Black "Steinberg, Nitzan"]
[WhiteFideId "895733"]
[BlackFideId "2801795"]
[WhiteElo "2632"]
[BlackElo "2741"]
[Result "1-0"]
[Round "09"]
[TimeControl "180+1"]
[Date "2021.08.17"]
[WhiteClock "0:01:52"]
[BlackClock "0:01:11"]

1. Nf3 {[%clk 0:03:00]}  d5 {[%clk 0:03:00]} 2. c4 {[%clk 0:03:01]}  e6 {[%clk 0:02:57]} 3. g3 {[%clk 0:03:00]}  Nf6 {[%clk 0:02:55]} 4. Bg2 {[%clk 0:03:00]}  b6 {[%clk 0:02:54]} 5. O-O {[%clk 0:02:57]}  Bb7 {[%clk 0:02:54]} 6. cxd5 {[%clk 0:02:58]}  exd5 {[%clk 0:02:54]} 7. d4 {[%clk 0:02:58]}  Bd6 {[%clk 0:02:53]} 8. Nc3 {[%clk 0:02:57]}  a6 {[%clk 0:02:51]} 9. Bg5 {[%clk 0:02:52]}  O-O {[%clk 0:02:50]} 10. Qb3 {[%clk 0:02:52]}  Nbd7 {[%clk 0:02:40]} 11. Nh4 {[%clk 0:02:50]}  c6 {[%clk 0:02:37]} 12. Nf5 {[%clk 0:02:48]}  Bc7 {[%clk 0:02:35]} 13. e4 {[%clk 0:02:47]}  h6 {[%clk 0:02:27]} 14. Bxf6 {[%clk 0:02:37]}  Nxf6 {[%clk 0:02:14]} 15. exd5 {[%clk 0:02:36]}  Nxd5 {[%clk 0:02:10]} 16. Nxd5 {[%clk 0:02:33]}  cxd5 {[%clk 0:02:10]} 17. Ne3 {[%clk 0:02:33]}  b5 {[%clk 0:02:07]} 18. Rac1 {[%clk 0:02:29]}  Bb6 {[%clk 0:02:06]} 19. Bxd5 {[%clk 0:02:19]}  Bxd5 {[%clk 0:01:45]} 20. Nxd5 {[%clk 0:02:20]}  Bxd4 {[%clk 0:01:44]} 21. Rfd1 {[%clk 0:02:00]}  Ba7 {[%clk 0:01:44]} 22. Nc7 {[%clk 0:01:58]}  Qf6 {[%clk 0:01:40]} 23. Nxa8 {[%clk 0:01:58]}  Rxa8 {[%clk 0:01:30]} 24. Rc2 {[%clk 0:01:56]}  Re8 {[%clk 0:01:27]} 25. Kg2 {[%clk 0:01:55]}  h5 {[%clk 0:01:26]} 26. Qf3 {[%clk 0:01:54]}  Qg6 {[%clk 0:01:24]} 27. Rc6 {[%clk 0:01:54]}  Re6 {[%clk 0:01:11]} 28. Rd8+ {[%clk 0:01:52]}  Kh7 {[%clk 0:01:11]} 29. Rxe6 {[%clk 0:01:52]}  fxe6 {[%clk 0:01:11]} 30. Qd3 {[%clk 0:01:52]} 1-0


[Site "https://www.chess.com"]